Workbook

Sheet Innhold
L5: Innholdsfortegnelse
L10: 1.0 | M10: Ansvarlig kapital
L11: 1.1 | M11: Skjema for offentliggjøring av de viktigste avtalevilkårene for kapitalinstrumenter
L12: 1.2 | M12: Skjema for offentliggjøring av sammensetningen av ansvarlig kapital
L14: 2.0 | M14: Uvektet kjernekapitalandel
L15: 2.1 | M15: Table LRSum: Summary reconciliation of accounting assets and leverage ratio exposures
L16: 2.2 | M16: Table LRCom: Leverage ratio common disclosure
L17: 2.3 | M17: Table LRSpl: Split-up of on balance sheet exposures (excluding derivatives, SFTs and exempted exposures)
L19: 3.0 | M19: Pantsatte og ikke-pantsatte eiendeler
L21: 4.0 | M21: LCR
L23: 5.0 | M23: Offentliggjøring av opplysninger om motsyklisk kapitalbufferkrav

Sheet 1.1
C5: 1.0 | D5: Ansvarlig kapital
C8: 1.1 | D8: Skjema for offentliggjøring av de viktigste avtalevilkårene for kapitalinstrumenter
C11: Skjema for offentliggjøring av de viktigste avtalevilkårene for kapitalinstrumenter
C13: 1 | D13: Utsteder | E13: Eika Gruppen AS | F13: Eika Gruppen AS
C14: 2 | D14: Entydig identifikasjonskode (f.eks. CUSIP, ISIN eller Bloombergs identifikasjonskode for rettede emisjoner) | E14: NO0010837594 | F14: NO0010837610
C15: 3 | D15: Gjeldende lovgivning for instrumentet | E15: Finansforetaksloven | F15: Finansforetaksloven
D17: Behandling etter kapitalregelverket
C19: 4 | D19: Regler som gjelder i overgangsperioden | E19: Tilleggskapital | F19: Annen godkjent kjernekapital
C20: 5 | D20: Regler som gjelder etter overgangsperioden | E20: Tilleggskapital | F20: Annen godkjent kjernekapital
C21: 6 | D21: Medregning på selskaps- eller (del)konsolidert nivå, selskaps- og (del)konsolidert nivå | E21: Selskaps- og konsolidert nivå | F21: Selskaps- og konsolidert nivå
C22: 7 | D22: Instrumenttype (typer skal spesifiseres for hver jurisdiksjon) | E22: Ansvarlig lån | F22: Fondsobligasjon
C23: 8 | D23: Beløp som inngår i ansvarlig kapital (i millioner NOK fra seneste rapporteringsdato) | E23: 125000000 | F23: 100000000
C24: 9 | D24: Instrumentets nominelle verdi | E24: 125000000 | F24: 100000000
C25: 9a | D25: Emisjonskurs | E25: 100000 | F25: 100000
C26: 9b | D26: Innløsningskurs | E26: 1 | F26: 1
C27: 10 | D27: Regnskapsmessig klassifisering | E27: Gjeld | F27: Gjeld
C28: 11 | D28: Opprinnelig utstedelsesdato | E28: 2018-12-06 | F28: 2018-12-06
C29: 12 | D29: Evigvarende eller tidsbegrenset | E29: Tidsbegrenset | F29: Evigvarende
C30: 13 | D30: Opprinnelig forfallsdato | E30: 2028-12-06 | F30: 2099-12-06
C31: 14 | D31: Innløsningsrett for utsteder forutsatt samtykke fra Finanstilsynet | E31: Ja | F31: Ja
C32: 15 | D32: Dato for innløsningsrett, eventuell betinget innløsningsrett og innløsningsbeløp | E32: 2023-12-06 | F32: 2023-12-06
C33: 16 | D33: Datoer for eventuell etterfølgende innløsningsrett | E33: Hver Rentebetalingsdato | F33: Hver Rentebetalingsdato
D35: Renter/utbytte
C37: 17 | D37: Fast eller flytende rente/utbytte | E37: Flytende | F37: Flytende
C38: 18 | D38: Rentesats og eventuell tilknyttet referanserente | E38: NIBOR 3 + 275pkt | F38: NIBOR 3 + 450 pkt
C39: 19 | D39: Vilkår om at det ikke kan betales utbytte hvis det ikke er betalt rente på instrumentet («dividend stopper») | E39: Nei | F39: Nei
C40: 20a | D40: Full fleksibilitet, delvis fleksibilitet eller pliktig (med hensyn til tidspunkt) | E40: Pliktig | F40: Pliktig
C41: 20b | D41: Full fleksibilitet, delvis fleksibilitet eller pliktig (med hensyn til beløp) | E41: Pliktig | F41: Pliktig
C42: 21 | D42: Vilkår om renteøkning eller annet incitament til innfrielse | E42: Nei | F42: Nei
C43: 22 | D43: Ikke-kumulativ eller kumulativ | E43: NA | F43: NA
D45: Konvertering/nedskrivning
C47: 23 | D47: Konvertibel eller ikke konvertibel | E47: Nei | F47: Nei
C48: 24 | D48: Hvis konvertibel, nivå(er) som utløser konvertering | E48: - | F48: -
C49: 25 | D49: Hvis konvertibel, hel eller delvis | E49: - | F49: -
C50: 26 | D50: Hvis konvertibel, konverteringskurs | E50: - | F50: -
C51: 27 | D51: Hvis konvertibel, pliktig eller valgfri | E51: - | F51: -
C52: 28 | D52: Hvis konvertibel, oppgi instrumenttypen det konverteres til | E52: - | F52: -
C53: 29 | D53: Hvis konvertibel, oppgi utsteder av instrumentene det konverteres til | E53: - | F53: -
C54: 30 | D54: Vilkår om nedskrivning | E54: - | F54: -
C55: 31 | D55: Hvis nedskrivning, nivå som utløser nedskrivning | E55: Nei | F55: Nei
C56: 32 | D56: Hvis nedskrivning, hel eller delvis | E56: - | F56: -
C57: 33 | D57: Hvis nedskrivning, med endelig virkning eller midlertidig | E57: - | F57: -
C58: 34 | D58: Hvis midlertidig nedskrivning, beskrivelse av oppskrivningsmekanismen | E58: - | F58: -
C59: 35 | D59: Prioritetsrekkefølge ved avvikling (oppgi instrumenttypen som har nærmeste bedre prioritet) | E59: - | F59: -
C60: 36 | D60: Vilkår som gjør at instrumentet ikke kan medregnes etter overgangsperioden | E60: Nei | F60: Nei
C61: 37 | D61: Hvis ja, spesifiser hvilke vilkår som ikke oppfyller nye krav | E61: - | F61: -

Sheet 1.2
C5: 1.0 | D5: Ansvarlig kapital
C8: 1.2 | D8: Skjema for offentliggjøring av sammensetningen av ansvarlig kapital
D11: Ren kjernekapital: Instrumenter og opptjent kapital | E11: Beløp på datoen for offentlig-gjøring
C13: 1 | D13: Kapitalinstrumenter og tilhørende overkursfond | E13: 1148758038
D14: herav: instrumenttype 1
D15: herav: instrumenttype 2
D16: herav: instrumenttype 3
C17: 2 | D17: Opptjent egenkapital i form av tidligere års tilbakeholdte resultater | E17: 398734995.3
C18: 3 | D18: Akkumulerte andre inntekter og kostnader og andre fond o.l.
C19: 3a | D19: Avsetning for generell bankrisiko
C20: 4 | D20: Rene kjernekapitalinstrumenter omfattet av overgangsbestemmelser
C21: 4a | D21: Statlige innskudd av ren kjernekapital omfattet av overgangsbestemmelser
C22: 5 | D22: Minoritetsinteresser
C23: 5a | D23: Revidert delårsoverskudd fratrukket påregnelig skatt mv. og utbytte
C24: 6 | D24: Ren kjernekapital før regulatoriske justeringer | E24: =SUM(E13:E23) -> 1547493034
D26: Ren kjernekapital: Regulatoriske justeringer
C28: 7 | D28: Verdijusteringer som følge av kravene om forsvarlig verdsettelse | E28: -1463291.88
C29: 8 | D29: Immaterielle eiendeler redusert med utsatt skatt (negativt beløp) | E29: -19728777.3
C30: 9 | D30: Tomt felt i EØS
C31: 10 | D31: Utsatt skattefordel som ikke skyldes midlertidige forskjeller redusert med utsatt skatt som kan motregnes (negativt beløp)
C32: 11 | D32: Verdiendringer på sikringsinstrumenter ved kontantstrømsikring
C33: 12 | D33: Positive verdier av justert forventet tap etter kapitalkravsforskriften § 15-7 (tas inn som negativt beløp)
C34: 13 | D34: Økning i egenkapitalen knyttet til fremtidig inntekt grunnet verdipapiriserte eiendeler (negativt beløp)
C35: 14 | D35: Gevinster eller tap på gjeld målt til virkelig verdi som skyldes endringer i egen kredittverdighet
C36: 15 | D36: Overfinansiering av pensjonsforpliktelser (negativt beløp)
C37: 16 | D37: Direkte, indirekte og syntetiske beholdninger av egne rene kjernekapitalinstrumenter (negativt beløp)
C38: 17 | D38: Beholdning av ren kjernekapital i annet selskap i finansiell sektor som har en gjensidig investering av ansvarlig kapital (negativt beløp)
C39: 18 | D39: Direkte, indirekte og syntetiske beholdninger av ren kjernekapital i andre selskaper i finansiell sektor der institusjonen ikke har en vesentlig investering. Beløp som overstiger grensen på 10 %, regnet etter fradrag som er tillatt for korte posisjoner (negativt beløp)
C40: 19 | D40: Direkte, indirekte og syntetiske beholdninger av ren kjernekapital i andre selskaper i finansiell sektor der institusjonen har vesentlige investeringer som samlet overstiger grensen på 10 %. Beløp regnet etter fradrag som er tillatt for korte posisjoner (negativt beløp) | E40: -269278991
C41: 20 | D41: Tomt felt i EØS
C42: 20a | D42: Poster som alternativt kan få 1250 % risikovekt (negativt beløp)
C43: 20b | D43: herav: kvalifiserte eiendeler i selskap utenfor finansiell sektor (negativt beløp)
C44: 20c | D44: herav: verdipapiriseringsposisjoner (negativt beløp)
C45: 20d | D45: herav: motpartsrisiko for transaksjoner som ikke er avsluttet (negativt beløp)
C46: 21 | D46: Utsatt skattefordel som skyldes midlertidige forskjeller og som overstiger unntaksgrensen på 10 %, redusert med utsatt skatt som kan motregnes (negativt beløp)
C47: 22 | D47: Beløp som overstiger unntaksgrensen på 17,65 % (negativt beløp)
C48: 23 | D48: herav: direkte, indirekte og syntetiske beholdninger av ren kjernekapital i andre selskaper i finansiell sektor der institusjonen har en vesentlig investering (negativt beløp)
C49: 24 | D49: Tomt felt i EØS
C50: 25 | D50: herav: utsatt skattefordel som skyldes midlertidige forskjeller (negativt beløp)
C51: 25a | D51: Akkumulert underskudd i inneværende regnskapsår (negativt beløp)
C52: 25b | D52: Påregnelig skatt relatert til rene kjernekapitalposter (negativt beløp)
C53: 26 | D53: Justeringer i ren kjernekapital som følge av overgangsbestemmelser
C54: 26a | D54: Overgangsbestemmelser for regulatoriske filtre relaterte til urealiserte gevinster og tap
D55: herav: filter for urealisert tap 1
D56: herav: filter for urealisert tap 2
D57: herav: filter for urealisert gevinst 1 (negativt beløp)
D58: herav: filter for urealisert gevinst 2 (negativt beløp)
C59: 26b | D59: Beløp som skal trekkes fra eller legges til ren kjernekapital som følge av overgangsbestemmelser for andre filtre og fradrag
D60: herav: …
C61: 27 | D61: Overskytende fradrag i annen godkjent kjernekapital (negativt beløp) | E61: -6407695.91
C62: 28 | D62: Sum regulatoriske justeringer i ren kjernekapital | E62: =SUM(E28:E42)+E46+E47+E51+E52+E53+E61 -> -296878756.1
C63: 29 | D63: Ren kjernekapital | E63: =IF(E62>0,E24-E62,+E24+E62) -> 1250614278
D65: Annen godkjent kjernekapital: Instrumenter
C67: 30 | D67: Kapitalinstrumenter og tilhørende overkursfond
C68: 31 | D68: herav: klassifisert som egenkapital etter gjeldende regnskapsstandard
C69: 32 | D69: herav: klassifisert som gjeld etter gjeldende regnskapsstandard
C70: 33 | D70: Fondsobligasjonskapital omfattet av overgangsbestemmelser | E70: 100000000
D71: Statlige innskudd av fondsobligasjonskapital omfattet av overgangsbestemmelser
C72: 34 | D72: Fondsobligasjonskapital utstedt av datterselskaper til tredjeparter som kan medregnes i annen godkjent kjernekapital
C73: 35 | D73: herav: instrumenter omfattet av overgangsbestemmelser
C74: 36 | D74: Annen godkjent kjernekapital før regulatoriske justeringer | E74: =E67+E70+E72 -> 100000000
D76: Annen godkjent kjernekapital: Regulatoriske justeringer
C78: 37 | D78: Direkte, indirekte og syntetiske beholdninger av egen fondsobligasjonskapital (negativt beløp)
C79: 38 | D79: Beholdning av annen godkjent kjernekapital i annet selskap i finansiell sektor som har en gjensidig investering av ansvarlig kapital (negativt beløp)
C80: 39 | D80: Direkte, indirekte og syntetiske beholdninger av fondsobligasjonskapital i andre selskaper i finansiell sektor der institusjonen ikke har en vesentlig investering. Beløp som overstiger grensen på 10 %, regnet etter fradrag som er tillatt for korte posisjoner (negativt beløp)
C81: 40 | D81: Direkte, indirekte og syntetiske beholdninger av fondsobligasjonskapital i andre selskaper i finansiell sektor der institusjonen har en vesentlig investering. Beløp regnet etter fradrag som er tillatt for korte posisjoner (negativt beløp)
C82: 41 | D82: Justeringer i annen godkjent kjernekapital som følge av overgangsbestemmelser
C83: 41a | D83: Fradrag som skal gjøres i annen godkjent kjernekapital, i stedet for ren kjernekapital, som følge av overgangsbestemmelser (negativt beløp)
D84: herav: spesifiser de enkelte postene linje for linje
C85: 41b | D85: Fradrag som skal gjøres i annen godkjent kjernekapital, i stedet for tilleggskapital, som følge av overgangsbestemmelser (negativt beløp)
D86: herav: spesifiser de enkelte postene linje for linje
C87: 41c | D87: Beløp som skal trekkes fra eller legges til annen godkjent kjernekapital som følge av overgangsbestemmelser for andre filtre og fradrag
D88: herav: filter for urealisert tap
D89: herav: filter for urealisert gevinst (negativt beløp)
D90: herav: …
C91: 42 | D91: Overskytende fradrag i tilleggskapital (negativt beløp)
C92: 43 | D92: Sum regulatoriske justeringer i annen godkjent kjernekapital | E92: =SUM(E78:E82)+E91 -> 0
C93: 44 | D93: Annen godkjent kjernekapital | E93: =+E74+E92 -> 100000000
C94: 45 | D94: Kjernekapital | E94: =+E63+E93 -> 1350614278
D96: Tilleggskapital: Instrumenter og avsetninger
C98: 46 | D98: Kapitalinstrumenter og tilhørende overkursfond
C99: 47 | D99: Tilleggskapital omfattet av overgangsbestemmelser | E99: 125000000
D100: Statlige innskudd av tilleggskapital omfattet av overgangsbestemmelser
C101: 48 | D101: Ansvarlig lånekapital utstedt av datterselskaper til tredjeparter som kan medregnes i tilleggskapitalen
C102: 49 | D102: herav: instrumenter omfattet av overgangsbestemmelser
C103: 50 | D103: Tallverdien av negative verdier av justert forventet tap
C104: 51 | D104: Tilleggskapital før regulatoriske justeringer | E104: =SUM(E98:E101)+E103 -> 125000000
D106: Tilleggskapital: Regulatoriske justeringer
C108: 52 | D108: Direkte, indirekte og syntetiske beholdninger av egen ansvarlig lånekapital (negativt beløp)
C109: 53 | D109: Beholdning av tilleggskapital i annet selskap i finansiell sektor som har en gjensidig investering av ansvarlig kapital (negativt beløp)
C110: 54 | D110: Direkte, indirekte og syntetiske beholdninger av ansvarlig lånekapital i andre selskaper i finansiell sektor der institusjonen ikke har en vesentlig investering. Beløp som overstiger grensen på 10 %, regnet etter fradrag som er tillatt for korte posisjoner (negativt beløp)
C111: 54a | D111: herav: nye beholdninger som ikke omfattes av overgangsbestemmelser
C112: 54b | D112: herav: beholdninger fra før 1. januar 2013 omfattet av overgangsbestemmelser
C113: 55 | D113: Direkte, indirekte og syntetiske beholdninger av ansvarlig lånekapital i andre selskaper i finansiell sektor der institusjonen har en vesentlig investering. Beløp regnet etter fradrag som er tillatt for korte posisjoner (negativt beløp)
C114: 56 | D114: Justeringer i tilleggskapital som følge av overgangsbestemmelser (negativt beløp)
C115: 56a | D115: Fradrag som skal gjøres i tilleggskapital, i stedet for ren kjernekapital, som følge av overgangsbestemmelser (negativt beløp)
D116: herav: spesifiser de enkelte postene linje for linje
C117: 56b | D117: Fradrag som skal gjøres i tilleggskapital, i stedet for annen godkjent kjernekapital, som følge av overgangsbestemmelser (negativt beløp)
D118: herav: spesifiser de enkelte postene linje for linje
C119: 56c | D119: Beløp som skal trekkes fra eller legges til tilleggskapitalen som følge av overgangsbestemmelser for filtre og andre fradrag
C120: 57 | D120: Sum regulatoriske justeringer i tilleggskapital | E120: =SUM(E108:E110)+E113+E114 -> 0
C121: 58 | D121: Tilleggskapital | E121: =IF(E120>0,E104-E120,E104+E120) -> 125000000
C122: 59 | D122: Ansvarlig kapital | E122: =E94+E121 -> 1475614278
C123: 59a | D123: Økning i beregningsgrunnlaget som følge av overgangsbestemmelser
D124: herav: beløp som ikke er trukket fra ren kjernekapital
D125: herav: beløp som ikke er trukket fra annen godkjent kjernekapital
D126: herav: beløp som ikke er trukket fra tilleggskapital
C127: 60 | D127: Beregningsgrunnlag | E127: 6133694685
D129: Kapitaldekning og buffere
C131: 61 | D131: Ren kjernekapitaldekning | E131: =+E63/E127 -> 0.2038924893
C132: 62 | D132: Kjernekapitaldekning | E132: =+E94/E127 -> 0.2201958765
C133: 63 | D133: Kapitaldekning | E133: =+E122/E127 -> 0.2405751107
C134: 64 | D134: Kombinert bufferkrav som prosent av beregningsgrunnlaget | E134: 0.075
C135: 65 | D135: herav: bevaringsbuffer | E135: 0.025
C136: 66 | D136: herav: motsyklisk buffer | E136: 0.01
C137: 67 | D137: herav: systemrisikobuffer | E137: 0.03
C138: 67a | D138: herav: buffer for andre systemviktige institusjoner (O-SII-buffer) | E138: 0
C139: 68 | D139: Ren kjernekapital tilgjengelig for oppfyllelse av bufferkrav | E139: =(E63-(E135*E127)-(E127*E136)-(E127*E137))/E127 -> 0.1388924893
C140: 69 | D140: Ikke relevant etter EØS-regler
C141: 70 | D141: Ikke relevant etter EØS-regler
C142: 71 | D142: Ikke relevant etter EØS-regler
D144: Kapitaldekning og buffere
C146: 72 | D146: Beholdninger av ansvarlig kapital i andre selskaper i finansiell sektor der institusjonen har en ikke vesentlig investering, som samlet er under grensen på 10 %. Beløp regnet etter fradrag som er tillatt for korte posisjoner. | E146: 5784644
C147: 73 | D147: Beholdninger av ren kjernekapital i andre selskaper i finansiell sektor der institusjonen har en vesentlig investering, som samlet er under grensen på 10 %. Beløp regnet etter fradrag som er tillatt for korte posisjoner. | E147: 149042322
C148: 74 | D148: Tomt felt i EØS
C149: 75 | D149: Utsatt skattefordel som skyldes midlertidige forskjeller redusert med utsatt skatt som kan motregnes, som er under grensen på 10 %.
D151: Grenser for medregning av avsetninger i tilleggskapitalen
C152: 76 | D152: Generelle kredittrisikoreserver | E152: 0
C153: 77 | D153: Grense for medregning av generelle kredittrisikoreserver i tilleggskapitalen
C154: 78 | D154: Tallverdien av negative verdier av justert forventet tap
C155: 79 | D155: Grense for medregning i tilleggskapitalen av overskytende regnskapsmessige nedskrivninger
D157: Kapitalinstrumenter omfattet av overgangsbestemmelser
C159: 80 | D159: Grense for medregning av rene kjernekapitalinstrumenter omfattet av overgangsbestemmelser
C160: 81 | D160: Overskytende ren kjernekapital omfattet av overgangsbestemmelser | E160: 0
C161: 82 | D161: Grense for medregning av fondsobligasjonskapital omfattet av overgangsbestemmelser
C162: 83 | D162: Overskytende fondsobligasjonskapital omfattet av overgangsbestemmelser
C163: 84 | D163: Grense for medregning av ansvarlig lånekapital omfattet av overgangsbestemmelser
C164: 85 | D164: Overskytende ansvarlig lånekapital omfattet av overgangsbestemmelser

Sheet 2.1
C5: 2.0 | D5: Uvektet kjernekapitalandel
C8: 2.1 | D8: Table LRSum: Summary reconciliation of accounting assets and leverage ratio exposures
D11: Table LRSum: Summary reconciliation of accounting assets and leverage ratio exposures | E11: Applicable amount
C13: 1 | D13: Total assets as per published financial statements | E13: 1.269624422e+10
C14: 2 | D14: Adjustment for entities which are consolidated for accounting purposes but are outside the scope of regulatory consolidation | E14: -6132212148
C15: 3 | D15: (Adjustment for fiduciary assets recognised on the balance sheet pursuant to the applicable accounting framework but excluded from the leverage ratio total exposure measure in accordance with Article 429(13) of Regulation (EU) No 575/2013) | E15: 0
C16: 4 | D16: Adjustments for derivative financial instruments | E16: 0
C17: 5 | D17: Adjustment for securities financing transactions (SFTs) | E17: 0
C18: 6 | D18: Adjustment for off-balance sheet items (ie conversion to credit equivalent amounts of off-balance sheet exposures) | E18: 959592968
C19: EU-6a | D19: (Adjustment for intragroup exposures excluded from the leverage ratio total exposure measure in accordance with Article 429(7) of Regulation (EU) No 575/2013)
C20: EU-6b | D20: (Adjustment for exposures excluded from the leverage ratio total exposure measure in accordance with Article 429(14) of Regulation (EU) No 575/2013) | E20: 0
C21: 7 | D21: Other adjustments | E21: 736311351
C22: 8 | D22: Leverage ratio total exposure measure | E22: =E13+E14+E18+E21 -> 8259936386

Sheet 2.2
C5: 2.0 | D5: Uvektet kjernekapitalandel
C8: 2.2 | D8: Table LRCom: Leverage ratio common disclosure
D11: On-balance sheet exposures (excluding derivatives and SFTs) | E11: CRR leverage ratio exposures
C13: 1 | D13: On-balance sheet items (excluding derivatives, SFTs and fiduciary assets, but including collateral) | E13: 7300343418
C14: 2 | D14: (Asset amounts deducted in determining Tier 1 capital)
C15: 3 | D15: Total on-balance sheet exposures (excluding derivatives, SFTs and fiduciary assets) (sum of lines 1 and 2) | E15: =E13+E14 -> 7300343418
D18: Derivative exposures | E18: CRR leverage ratio exposures
C20: 4 | D20: Replacement cost associated with all derivatives transactions (ie net of eligible cash variation margin)
C21: 5 | D21: Add-on amounts for PFE associated with all derivatives transactions (mark- to-market method)
C22: EU-5a | D22: Exposure determined under Original Exposure Method
C23: 6 | D23: Gross-up for derivatives collateral provided where deducted from the balance sheet assets pursuant to the applicable accounting framework
C24: 7 | D24: (Deductions of receivables assets for cash variation margin provided in derivatives transactions)
C25: 8 | D25: (Exempted CCP leg of client-cleared trade exposures)
C26: 9 | D26: Adjusted effective notional amount of written credit derivatives
C27: 10 | D27: (Adjusted effective notional offsets and add-on deductions for written credit derivatives)
C28: 11 | D28: Total derivatives exposures (sum of lines 4 to 10) | E28: 0
D31: SFT exposures | E31: CRR leverage ratio exposures
C33: 12 | D33: Gross SFT assets (with no recognition of netting), after adjusting for sales accounting transactions
C34: 13 | D34: (Netted amounts of cash payables and cash receivables of gross SFT assets)
C35: 14 | D35: Counterparty credit risk exposure for SFT assets
C36: EU-14a | D36: Derogation for SFTs: Counterparty credit risk exposure in accordance with Articles 429b(4) and 222 of Regulation (EU) No 575/2013
C37: 15 | D37: Agent transaction exposures
C38: EU-15a | D38: (Exempted CCP leg of client-cleared SFT exposure)
C39: 16 | D39: Total securities financing transaction exposures (sum of lines 12 to 15a) | E39: 0
D42: Other off-balance sheet exposures | E42: CRR leverage ratio exposures
C44: 17 | D44: Off-balance sheet exposures at gross notional amount | E44: 959592968
C45: 18 | D45: (Adjustments for conversion to credit equivalent amounts) | E45: 0
C46: 19 | D46: Other off-balance sheet exposures (sum of lines 17 and 18) | E46: =E44+E45 -> 959592968
D49: Exempted exposures in accordance with Article 429(7) and (14) of Regulation (EU) No 575/2013 (on and off balance sheet) | E49: CRR leverage ratio exposures
C51: EU-19a | D51: (Intragroup exposures (solo basis) exempted in accordance with Article 429(7) of Regulation (EU) No 575/2013 (on and off balance sheet))
C52: EU-19b | D52: (Exposures exempted in accordance with Article 429 (14) of Regulation (EU) No 575/2013 (on and off balance sheet)) | E52: 0
D55: Capital and total exposure measure | E55: CRR leverage ratio exposures
C57: 20 | D57: Tier 1 capital | E57: 1350614278
C58: 21 | D58: Leverage ratio total exposure measure (sum of lines 3, 11, 16, 19, EU-19a and EU-19b) | E58: =E15+E28+E39+E46+E51+E52 -> 8259936386
D61: Leverage ratio | E61: CRR leverage ratio exposures
C63: 22 | D63: Leverage ratio | E63: =E57/E58 -> 0.1635138837

Sheet 2.3
C5: 2.0 | D5: Uvektet kjernekapitalandel
C8: 2.3 | D8: Table LRSpl: Split-up of on balance sheet exposures (excluding derivatives, SFTs and exempted exposures)
D11: Table LRSpl | E11: CRR leverage ratio exposures
C13: EU-1 | D13: Total on-balance sheet exposures (excluding derivatives, SFTs, and exempted exposures), of which: | E13: =E14+E15 -> 7300253418
C14: EU-2 | D14: Trading book exposures | E14: 0
C15: EU-3 | D15: Banking book exposures, of which: | E15: =SUM(E16:E24) -> 7300253418
C16: EU-4 | D16: Covered bonds | E16: 151783790
C17: EU-5 | D17: Exposures treated as sovereigns | E17: 113677410
C18: EU-6 | D18: Exposures to regional governments, MDB, international organisations and PSE not treated as sovereigns | E18: 405009514
C19: EU-7 | D19: Institutions | E19: 2179507153
C20: EU-8 | D20: Secured by mortgages of immovable properties | E20: 0
C21: EU-9 | D21: Retail exposures | E21: 2769026064
C22: EU-10 | D22: Corporate | E22: 679219980
C23: EU-11 | D23: Exposures in default | E23: 38705459
C24: EU-12 | D24: Other exposures (eg equity, securitisations, and other non-credit obligation assets) | E24: 963324048

Sheet 3.0
C5: 3.0 | D5: Pantsatte og ikke-pantsatte eiendeler
C11: Template A - Encumbered and unencumbered assets
E12: Carrying amount of encumbered assets | G12: Fair value of encumbered assets | I12: Carrying amount of unencumbered assets | K12: Fair value of unencumbered assets
F14: of which notionally elligible EHQLA and HQLA | H14: of which notionally elligible EHQLA and HQLA | J14: of which EHQLA and HQLA | L14: of which EHQLA and HQLA
E15: 010 | F15: 030 | G15: 040 | H15: 050 | I15: 060 | J15: 080 | K15: 090 | L15: 100
C16: 010 | D16: Assets of the reporting institution | I16: 1.269624422e+10
C17: 030 | D17: Equity instruments | I17: 302823916 | J17: 45498874 | K17: 302823916 | L17: 45498874
C18: 040 | D18: Debt securities | I18: 1007289856 | J18: 501907861 | K18: =I18 -> 1007289856 | L18: =SUM(L19:L22) -> 491891290
C19: 050 | D19: of which: covered bonds | I19: 152025816 | J19: =I19 -> 152025816 | K19: =I19 -> 152025816 | L19: =K19 -> 152025816
C20: 060 | D20: of which: asset-backed securities
C21: 070 | D21: of which: issued by general governments | I21: 357881314 | J21: 339865474 | K21: =I21 -> 357881314 | L21: =J21 -> 339865474
C22: 080 | D22: of which: issued by financial corporations | I22: 487366155 | J22: 0 | K22: 487366155 | L22: =J22 -> 0
C23: 090 | D23: of which: issued by non-financial corporations | I23: 10016571 | J23: =I23 -> 10016571 | K23: 10016571 | L23: =J23 -> 10016571
C24: 120 | D24: Other assets | I24: =I16-I25 -> 1.001376633e+10
C25: 121 | D25: of which: Loans | I25: 2682477886
C28: Template B - Collateral received
E29: Fair value of encumbered collateral received or own debt securities issued | G29: Unencumbered
G30: Fair value of collateral received or own debt securities issued available for encumbrance
F31: of which notionally elligible EHQLA and HQLA | H31: of which EHQLA and HQLA
E32: 010 | F32: 030 | G32: 040 | H32: 060
C33: 130 | D33: Collateral received by the reporting institution
C34: 140 | D34: Loans on demand
C35: 150 | D35: Equity instruments
C36: 160 | D36: Debt securities
C37: 170 | D37: of which: covered bonds
C38: 180 | D38: of which: asset-backed securities
C39: 190 | D39: of which: issued by general governments
C40: 200 | D40: of which: issued by financial corporations
C41: 210 | D41: of which: issued by non-financial corporations
C42: 220 | D42: Loans and advances other than loans on demand
C43: 230 | D43: Other collateral received
C44: 231 | D44: of which: …
C45: 240 | D45: Own debt securities issued other than own covered bonds or asset-backed securities
C46: 241 | D46: Own covered bonds and asset-backed securities issued and not yet pledged
C47: 250 | D47: TOTAL ASSETS, COLLATERAL RECEIVED AND OWN DEBT SECURITIES ISSUED
C50: Template C - Sources of encumbrance
E51: Matching liabilities, contingent liabilities or securities lent | F51: Assets, collateral received and own debt securities issued other than covered bonds and ABSs encumbered
E52: 010 | F52: 030
C54: 011 | D54: of which: …
D55: Derivatives
D56: Repurchase agreements
D57: Collateralised deposits other than repurchase agreements
D58: Debt securities issued: covered bonds
C61: Template D - Accompanying narrative information

Sheet 4.0
C5: 4.0 | D5: LCR
C8: 4.0 | D8: LCR - Gjennomsnitt siste 12 måneder
C11: Amounts in NOK | E11: a | F11: b
E12: Total unweighted value (average) | F12: Total weighted value (average)
C13: High-quality liquid assets
C15: 1 | D15: Total HQLA | E15: 563635200 | F15: 511867843.6
C17: Cash Outflows
C19: 2 | D19: Retail deposits and deposits from small business customers, of which: | E19: 4331213609 | F19: 528698343.1
C20: 3 | D20: Stable deposits | E20: 0 | F20: 0
C21: 4 | D21: Less stable deposits | E21: 4331213609 | F21: 528698343.1
C22: 5 | D22: Unsecured wholesale funding, of which: | E22: 0 | F22: 0
C23: 6 | D23: Operational deposits (all counterparties) and deposits in networks of cooperative banks
C24: 7 | D24: Non-operational deposits (all counterparties)
C25: 8 | D25: Unsecured debt
C26: 9 | D26: Secured wholesale funding
C27: 10 | D27: Additional requirements, of which:
C28: 11 | D28: Outflows related to derivative exposures and other collateral requirements
C29: 12 | D29: Outflows related to loss of funding on debt products
C30: 13 | D30: Credit and liquidity facilities | E30: 9534895186 | F30: 556016822.5
C31: 14 | D31: Other contractual funding obligations | E31: 72431503.39 | F31: 72431503.39
C32: 15 | D32: Other contingent funding obligations | E32: 66481696.58 | F32: 0
C33: 16 | D33: TOTAL CASH OUTFLOWS | E33: 1.400502199e+10 | F33: 1157146669
C35: Cash inflows
C37: 17 | D37: Secured lending (eg reverse repos) | E37: 0 | F37: 0
C38: 18 | D38: Inflows from fully performing exposures | E38: 1803618947 | F38: 1142744986
C39: 19 | D39: Other cash inflows | E39: 0 | F39: 0
C40: 20 | D40: TOTAL CASH INFLOWS | E40: 1803618947 | F40: 1142744986
F42: Total adjusted value
C43: 21 | D43: Total HQLA | F43: 468225369.5
C44: 22 | D44: Total net cash outflows | F44: 297316170.2
C45: 23 | D45: Liquidity Coverage Ratio (%) | F45: 1.574839906

Sheet 5.0
C5: 5.0 | D5: Offentliggjøring av opplysninger om motsyklisk kapitalbufferkrav
C8: Tabell 1
C9: Geografisk fordeling av relevante kredittengasjementer
C11: Rad | E11: Generelle kredittengasjementer | G11: Engasjementer i handelsporteføljen | I11: Verdipapiriseringsengasjementer | K11: Kapitalkrav | O11: Vekter for kapitalkrav | P11: Motsyklisk kapitalbuffersats
E12: Engasjementsbeløp for SA | F12: Engasjementsbeløp for IRB | G12: Summen av lange og korte posisjoner i handelsporteføljen | H12: Verdien av engasjementer i handelsporteføljen for interne modeller | I12: Engasjementsbeløp for SA | J12: Engasjementsbeløp for IRB | K12: Herav: Generelle kredittengasjementer | L12: Herav: Engasjementer i handelsporteføljen | M12: Herav: Verdipapiriseringsengasjementer | N12: Totalt
E13: 010 | F13: 020 | G13: 030 | H13: 040 | I13: 050 | J13: 060 | K13: 070 | L13: 080 | M13: 090 | N13: 100 | O13: 110 | P13: 120
C14: 010 | D14: Inndeling etter land
D15: Norge | E15: 13767558849 | F15: 0 | G15: 0 | H15: 0 | I15: 0 | J15: 0 | K15: 1101404708 | L15: 0 | M15: 0 | N15: =K15+L15+M15 -> 1101404708 | O15: 0.08 | P15: 0.01
D16: Danmark | E16: 186824765 | F16: 0 | G16: 0 | H16: 0 | I16: 0 | J16: 0 | K16: 14945981 | L16: 0 | M16: 0 | N16: =K16+L16+M16 -> 14945981 | O16: 0.08 | P16: 0
C17: 020 | D17: Totalt | E17: =E15+E16 -> 13954383614 | F17: 0 | G17: 0 | H17: 0 | I17: 0 | J17: 0 | K17: =K15+K16 -> 1116350689 | L17: 0 | M17: 0 | N17: =K17+L17+M17 -> 1116350689 | O17: =O15 -> 0.08 | P17: =(K15/K17)*P15+(K16/K17)*P16 -> 0.00986611751
C20: Tabell 2
C21: Størrelsen på foretaksspesifikk motsyklisk kapitalbuffer
C23: Rad | F23: Kolonne
F24: 010
C25: 010 | D25: Samlet beregningsgrunnlag | F25: =E17 -> 13954383614
C26: 020 | D26: Foretaksspesifikk motsyklisk kapitalbuffersats | F26: =P17 -> 0.00986611751
C27: 030 | D27: Krav til foretaksspesifikk motsyklisk kapitalbuffer | F27: =F25*F26 -> 137675588.5
